fUST/lending_fUST_20260328
["ID","MTS","AMOUNT","RATE_DAILY","PERIOD"]
[418958429,1774654244764,-500.0,5.834e-05,2]
[418958430,1774654244773,-500.0,5.834e-05,2]
[418958431,1774654244782,-500.0,5.834e-05,2]
[418958432,1774654244792,-500.0,5.834e-05,2]
[418958433,1774654244801,-500.0,5.834e-05,2]
[418958434,1774654244811,-500.0,5.834e-05,2]
[418958435,1774654244821,-500.0,5.834e-05,2]
[418958436,1774654244830,-500.0,5.834e-05,2]
[418958437,1774654244839,-500.0,5.834e-05,2]
[418958438,1774654244849,-500.0,5.834e-05,2]
[418958439,1774654244859,-500.0,5.834e-05,2]
[418958440,1774654244868,-500.0,5.834e-05,2]
[418958441,1774654244878,-500.0,5.834e-05,2]
[418958442,1774654244887,-500.0,5.834e-05,2]
[418958443,1774654244897,-500.0,5.834e-05,2]
[418958444,1774654244906,-500.0,5.834e-05,2]
[418958445,1774654244915,-500.0,5.834e-05,2]
[418958446,1774654244925,-500.0,5.834e-05,2]
[418958447,1774654244935,-500.0,5.834e-05,2]
[418958448,1774654244944,-500.0,5.834e-05,2]
[418958449,1774654244953,-500.0,5.834e-05,2]
[418958450,1774654244963,-500.0,5.834e-05,2]
[418958451,1774654244972,-500.0,5.834e-05,2]
[418958452,1774654244981,-500.0,5.834e-05,2]
[418958453,1774654244992,-500.0,5.834e-05,2]
[418958454,1774654245001,-268.6454741,5.834e-05,2]
[418958455,1774654245011,-500.0,5.834e-05,2]
[418958456,1774654245020,-163.131956,5.869e-05,2]
[418958457,1774654245030,-1152.0,5.878e-05,2]
[418958458,1774654245039,-436.51873116,6.203e-05,2]
[418958459,1774654245048,-500.0,6.237e-05,2]
[418958460,1774654245057,-546.38542047,6.237e-05,2]
[418958461,1774654245067,-163.131956,6.289e-05,2]
[418958462,1774654245077,-500.0,6.361e-05,2]
[418958463,1774654245086,-500.0,6.386e-05,2]
[418958464,1774654245096,-500.0,6.613e-05,2]
[418958465,1774654245105,-500.0,6.613e-05,2]
[418958466,1774654245114,-500.0,6.613e-05,2]
[418958467,1774654245123,-163.131956,6.708e-05,2]
[418958468,1774654245133,-1000.0,6.785e-05,2]
[418958469,1774654245142,-163.131956,7.127e-05,2]
[418958470,1774654245151,-1000.0,7.161e-05,2]
[418958471,1774654245161,-826.42322921,7.161e-05,2]
[418958472,1774654245170,-1000.0,7.161e-05,2]
[418958473,1774654245180,-163.131956,7.546e-05,2]
[418958474,1774654245189,-570.97437961,7.644e-05,2]
[418958475,1774654245199,-1500.0,7.709e-05,2]
[418958476,1774654245209,-1500.0,7.709e-05,2]
[418958477,1774654245219,-163.131956,7.965e-05,2]
[418958478,1774654245228,-163.131956,8.385e-05,2]
[418958479,1774654245237,-163.131956,8.804e-05,2]
[418958480,1774654245247,-163.131956,9.223e-05,2]
[418958481,1774654245256,-158.14284156,0.00010531,2]
[418958482,1774654245265,-500.0,0.00010562,2]
[418958483,1774654245274,-545.85996319,0.00010562,2]
[418958484,1774654245284,-500.0,0.00010591,2]
[418958485,1774654245294,-500.0,0.00010591,2]
[418958486,1774654245303,-500.0,0.00010959,2]
[418958487,1774654245313,-500.0,0.00010959,2]
[418958488,1774654245322,-554.33572916,0.00010959,2]
[418958489,1774654245332,-500.0,0.00010959,2]
[418958490,1774654245341,-500.0,0.00010959,2]
[418958491,1774654245351,-500.0,0.00010959,2]
[418958492,1774654245361,-500.0,0.00010959,2]
[418958493,1774654245370,-300.0,0.00010959,2]
[418958494,1774654245380,-1000.0,0.00011109,2]
[418958495,1774654245389,-1000.0,0.00011139,2]
[418958496,1774654245398,-1000.0,0.00011139,2]
[418958497,1774654245408,-500.0,0.00011475,2]
[418958498,1774654245417,-500.0,0.00011475,2]
[418958499,1774654245427,-500.0,0.00011475,2]
[418958500,1774654245436,-500.42335265,0.00011475,2]
[418958501,1774654245445,-1500.0,0.00011657,2]
[418958502,1774654245455,-1448.19066664,0.00011687,2]
[418958503,1774654245464,-345.35621147,0.00011687,2]
[418958504,1774654245473,-500.0,0.00011808,2]
[418958505,1774654245482,-1000.0,0.00012023,2]
[418958506,1774654245491,-2000.0,0.00012205,2]
[418958507,1774654245501,-1000.0,0.00012356,2]
[418958508,1774654245510,-1500.0,0.00012571,2]
[418958509,1774654245520,-1500.0,0.00012904,2]
[418958510,1774654245529,-1000.0,0.00013699,2]
[418958511,1774654245538,-1000.0,0.00013699,2]
[418958512,1774654245547,-1092.0,0.00015,2]
[418958513,1774654245557,-936.0,0.00015,2]
[418958514,1774654245566,-35238.71392114,0.00018811,2]
[418958515,1774654245579,-2625.30129943,0.00018811,2]
[418958516,1774654245590,-729.67770619,0.00018811,2]
[418958517,1774654245602,-7227.06744111,0.00018811,2]
[418958534,1774654246909,-1757.56293966,0.00018811,2]
[418958535,1774654246921,-3807.01959831,0.00018811,2]
[418958556,1774655208232,500.0,1.88e-05,2]
[418958557,1774655208259,500.0,1.88e-05,2]
[418958558,1774655208284,500.0,1.88e-05,2]
[418958559,1774655208310,500.0,1.88e-05,2]
[418958560,1774655208335,500.0,1.88e-05,2]
[418958561,1774655208361,500.0,1.88e-05,2]
[418958562,1774655208385,500.0,1.88e-05,2]
[418958563,1774655208410,500.0,1.88e-05,2]
[418958564,1774655208434,500.0,1.88e-05,2]
[418958565,1774655208459,95500.0,1.88e-05,2]
[418958605,1774655435745,-651.38978089,9.048e-05,2]
[418958607,1774655435757,-1125.98825827,9.048e-05,2]
[418958609,1774655435768,-472.69603065,9.048e-05,2]
[418958611,1774655435778,-5000.0,9.148e-05,2]
[418958613,1774655435787,-5000.0,9.24e-05,2]
[418958615,1774655435797,-549.0,9.24e-05,2]
[418958617,1774655435806,-1200.0,9.332e-05,2]
[418958619,1774655435815,-5000.0,9.333e-05,2]
[418958621,1774655435825,-300.0,9.426e-05,2]
[418958623,1774655435834,-300.0,9.426e-05,2]
[418958625,1774655435844,-300.0,9.426e-05,2]
[418958627,1774655435853,-500.0,9.812e-05,2]
[418958629,1774655435863,-500.0,9.812e-05,2]
[418958631,1774655435872,-500.0,9.812e-05,2]
[418958633,1774655435881,-500.0,9.812e-05,2]
[418958635,1774655435891,-500.0,9.812e-05,2]
[418958637,1774655435900,-500.0,9.812e-05,2]
[418958639,1774655435909,-518.33519747,9.812e-05,2]
[418958642,1774655435918,-500.0,9.812e-05,2]
[418958644,1774655435927,-500.0,9.812e-05,2]
[418958646,1774655435937,-500.0,9.812e-05,2]
[418958648,1774655435946,-500.0,9.812e-05,2]
[418958650,1774655435955,-500.0,9.812e-05,2]
[418958652,1774655435964,-500.0,9.812e-05,2]
[418958654,1774655435974,-500.0,9.812e-05,2]
[418958656,1774655435983,-500.0,9.812e-05,2]
[418958658,1774655435992,-500.0,9.812e-05,2]
[418958660,1774655436001,-500.0,9.812e-05,2]
[418958662,1774655436010,-500.0,9.812e-05,2]
[418958664,1774655436019,-500.0,9.812e-05,2]
[418958666,1774655436028,-500.0,9.812e-05,2]
[418958668,1774655436037,-500.0,9.812e-05,2]
[418958670,1774655436046,-618.39393627,9.812e-05,2]
[418958672,1774655436055,-326.06616443,9.812e-05,2]
[418958674,1774655436064,-500.0,9.812e-05,2]
[418958676,1774655436073,-500.0,9.812e-05,2]
[418958678,1774655436083,-500.0,9.812e-05,2]
[418958680,1774655436092,-500.0,9.812e-05,2]
[418958682,1774655436101,-500.0,9.812e-05,2]
[418958684,1774655436110,-500.0,9.812e-05,2]
[418958686,1774655436120,-500.0,9.812e-05,2]
[418958688,1774655436128,-500.0,9.812e-05,2]
[418958690,1774655436138,-11733.7888297,9.814e-05,2]
[418958692,1774655436147,-441.8549106,9.851e-05,2]
[418958694,1774655436156,-1680.0,0.00010265,2]
[418958696,1774655436166,-420.0,0.00010369,2]
[418958698,1774655436175,-500.0,0.00010965,2]
[418958700,1774655436184,-2351.0,0.00011292,2]
[418958702,1774655436193,-587.0,0.00011405,2]
[418958704,1774655436202,-1000.0,0.00011513,2]
[418958706,1774655436211,-1000.0,0.00012,2]
[418958708,1774655436220,-1000.0,0.00012,2]
[418958710,1774655436229,-1000.0,0.00012,2]
[418958711,1774655436238,-908.24051297,0.00012,2]
[418958713,1774655436254,-91.75948703,0.00012,2]
[418958714,1774655436263,-581.65051297,0.00012,2]
[418958715,1774655436275,-367.38335282,0.00012,2]
[418958716,1774655436287,-50.96613421,0.00012,2]
[418958717,1774655436296,-450.03386579,0.00012421,2]
[418958718,1774655436308,-2841.96613421,0.00012421,2]
[418958719,1774655436317,-250.0,0.00012456,2]
[418958720,1774655436327,-823.0,0.00012546,2]
[418958721,1774655436336,-500.0,0.00012606,2]
[418958722,1774655436345,-500.0,0.000127,2]
[418958723,1774655436354,-500.0,0.000127,2]
[418958724,1774655436363,-500.0,0.000127,2]
[418958725,1774655436372,-233.72220397,0.0001288,2]
[418958785,1774655438919,-403.05428903,0.0001288,2]
[418958787,1774655438929,-500.0,0.00012975,2]
[418958789,1774655438938,-249.09425353,0.00013248,2]
[418958791,1774655438950,-750.90574647,0.00013248,2]
[418958793,1774655438960,-50.09965675,0.00013248,2]
[418958795,1774655438971,-949.90034325,0.00013248,2]
[418958797,1774655438980,-235.95347919,0.00013523,2]
[418958886,1774655444302,-3391.54944253,0.00012751,2]
[418958887,1774655444314,-608.45055747,0.00012751,2]
[418958900,1774656080693,-2310.03295275,8.965e-05,2]
[418958901,1774656080833,-2689.96704725,8.965e-05,2]
[418958905,1774656109928,-2310.03295275,8.965e-05,2]
[418958973,1774656638026,-5000.0,4.042e-05,2]
[418958974,1774656638036,-1200.0,4.082e-05,2]
[418958975,1774656638047,-5000.0,4.083e-05,2]
[418958976,1774656638057,-300.0,4.123e-05,2]
[418958977,1774656638067,-167.284265,4.124e-05,2]
[418958978,1774656638077,-300.0,4.164e-05,2]
[418958979,1774656638087,-300.0,4.164e-05,2]
[418958980,1774656638097,-300.0,4.164e-05,2]
[418958981,1774656638107,-300.0,4.164e-05,2]
[418958982,1774656638117,-300.0,4.164e-05,2]
[418958983,1774656638126,-300.0,4.164e-05,2]
[418958984,1774656638135,-300.0,4.164e-05,2]
[418958985,1774656638145,-300.0,4.164e-05,2]
[418958986,1774656638155,-300.0,4.164e-05,2]
[418958987,1774656638164,-300.0,4.164e-05,2]
[418958988,1774656638174,-300.0,4.164e-05,2]
[418958989,1774656638183,-300.0,4.164e-05,2]
[418958990,1774656638193,-300.0,4.164e-05,2]
[418958991,1774656638203,-300.0,4.164e-05,2]
[418958992,1774656638212,-300.0,4.164e-05,2]
[418958993,1774656638222,-600.0,4.246e-05,2]
[418958994,1774656638231,-1680.0,4.49e-05,2]
[418958995,1774656638241,-420.0,4.536e-05,2]
[418958996,1774656638251,-720.0,4.671e-05,2]
[418958997,1774656638260,-2351.0,4.939e-05,2]
[418958998,1774656638270,-587.0,4.989e-05,2]
[418958999,1774656638281,-864.0,5.138e-05,2]
[418959000,1774656638292,-167.284265,5.155e-05,2]
[418959001,1774656638302,-3285.0,5.433e-05,2]
[418959002,1774656638312,-250.0,5.45e-05,2]
[418959003,1774656638323,-613.14835527,5.478e-05,2]
[418959004,1774656638333,-500.0,5.478e-05,2]
[418959005,1774656638343,-500.0,5.478e-05,2]
[418959006,1774656638353,-500.0,5.478e-05,2]
[418959007,1774656638363,-500.0,5.478e-05,2]
[418959008,1774656638374,-500.0,5.478e-05,2]
[418959009,1774656638384,-500.0,5.478e-05,2]
[418959010,1774656638395,-500.0,5.478e-05,2]
[418959011,1774656638406,-500.0,5.478e-05,2]
[418959012,1774656638415,-500.0,5.478e-05,2]
[418959013,1774656638424,-500.0,5.478e-05,2]
[418959014,1774656638434,-500.0,5.478e-05,2]
[418959015,1774656638443,-500.0,5.478e-05,2]
[418959016,1774656638453,-500.0,5.478e-05,2]
[418959017,1774656638462,-500.0,5.478e-05,2]
[418959018,1774656638472,-500.0,5.478e-05,2]
[418959019,1774656638481,-500.0,5.478e-05,2]
[418959020,1774656638491,-500.0,5.478e-05,2]
[418959021,1774656638501,-500.0,5.478e-05,2]
[418959022,1774656638511,-500.0,5.478e-05,2]
[418959023,1774656638520,-500.0,5.478e-05,2]
[418959024,1774656638529,-500.0,5.478e-05,2]
[418959025,1774656638540,-500.0,5.478e-05,2]
[418959026,1774656638550,-500.0,5.478e-05,2]
[418959027,1774656638560,-500.0,5.478e-05,2]
[418959028,1774656638569,-567.82183088,5.478e-05,2]
[418959029,1774656638579,-500.0,5.478e-05,2]
[418959030,1774656638588,-500.0,5.478e-05,2]
[418959031,1774656638597,-500.0,5.478e-05,2]
[418959032,1774656638607,-500.0,5.478e-05,2]
[418959033,1774656638616,-500.0,5.478e-05,2]
[418959034,1774656638626,-635.43512307,5.478e-05,2]
[418959035,1774656638636,-500.0,5.478e-05,2]
[418959036,1774656638645,-500.0,5.478e-05,2]
[418959037,1774656638655,-500.0,5.478e-05,2]
[418959038,1774656638664,-500.0,5.478e-05,2]
[418959039,1774656638674,-500.0,5.478e-05,2]
[418959040,1774656638684,-500.0,5.478e-05,2]
[418959041,1774656638693,-500.0,5.478e-05,2]
[418959042,1774656638703,-500.0,5.478e-05,2]
[418959043,1774656638712,-500.0,5.478e-05,2]
[418959044,1774656638722,-500.0,5.478e-05,2]
[418959045,1774656638731,-500.0,5.478e-05,2]
[418959046,1774656638740,-500.0,5.478e-05,2]
[418959047,1774656638751,-500.0,5.478e-05,2]
[418959048,1774656638760,-300.0,5.479e-05,2]
[418959049,1774656638770,-823.0,5.488e-05,2]
[418959050,1774656638779,-1000.0,5.652e-05,2]
[418959051,1774656638788,-1152.0,6.037e-05,2]
[418959052,1774656638798,-167.284265,6.187e-05,2]
[418959053,1774656638808,-1000.0,6.217e-05,2]
[418959054,1774656638817,-244.0,6.217e-05,2]
[418959055,1774656638826,-1613.0,6.641e-05,2]
[418959056,1774656638836,-1000.0,6.839e-05,2]
[418959057,1774656638845,-492.0,6.839e-05,2]
[418959058,1774656638854,-167.284265,7.218e-05,2]
[418959059,1774656638863,-2258.0,7.305e-05,2]
[418959060,1774656638873,-1000.0,7.523e-05,2]
[418959061,1774656638882,-791.0,7.523e-05,2]
[418959062,1774656638892,-3162.0,8.035e-05,2]
[418959063,1774656638901,-167.284265,8.249e-05,2]
[418959064,1774656639036,-5000.0,8.271e-05,2]
[418959065,1774656639046,-1000.0,8.275e-05,2]
[418959066,1774656639056,-1000.0,8.275e-05,2]
[418959067,1774656639065,-8478.7877186,8.355e-05,2]
[418959068,1774656639074,-4427.0,8.839e-05,2]
[418959069,1774656639083,-1000.0,9.102e-05,2]
[418959070,1774656639092,-1000.0,9.102e-05,2]
[418959071,1774656639102,-579.0,9.102e-05,2]
[418959072,1774656639111,-500.0,9.239e-05,2]
[418959073,1774656639120,-500.0,9.239e-05,2]
[418959074,1774656639131,-500.0,9.239e-05,2]
[418959075,1774656639141,-156.05677293,9.239e-05,2]
[418959076,1774656639150,-3065.0,9.723e-05,2]
[418959077,1774656639160,-13966.726177,9.779e-05,2]
[418959078,1774656639169,-349.499998,9.8e-05,2]
[418959079,1774656639179,-1000.0,0.00010012,2]
[418959080,1774656639189,-1000.0,0.00010012,2]
[418959081,1774656639199,-1000.0,0.00010012,2]
[418959082,1774656639208,-500.0,0.00010052,2]
[418959083,1774656639217,-500.0,0.00010052,2]
[418959084,1774656639227,-500.0,0.00010052,2]
[418959085,1774656639236,-500.0,0.00010052,2]
[418959086,1774656639245,-500.0,0.00010052,2]
[418959087,1774656639254,-1000.0,0.000106,2]
[418959088,1774656639265,-1000.0,0.000106,2]
[418959089,1774656639274,-1000.0,0.000106,2]
[418959090,1774656639284,-191.43155557,0.000106,2]
[418959091,1774656639293,-1000.0,0.000106,2]
[418959092,1774656639303,-500.0,0.00010807,2]
[418959093,1774656639312,-495.28156353,0.00010807,2]
[418959094,1774656639322,-500.0,0.00010807,2]
[418959095,1774656639331,-1159.316472,0.00010842,2]
[418959096,1774656639340,-11086.32474123,0.00010842,2]
[418959162,1774656643753,-5000.0,0.00010734,2]
[418959163,1774656643763,-20137.50772212,0.00010842,2]
[418959166,1774656646324,-1565.08982225,0.00010842,2]
[418959167,1774656646334,-500.0,0.00010959,2]
[418959168,1774656646344,-500.0,0.00010959,2]
[418959169,1774656646354,-398.03501042,0.00010959,2]
[418959170,1774656646364,-500.0,0.00010959,2]
[418959171,1774656646374,-1000.0,0.00011014,2]
[418959172,1774656646384,-1000.0,0.00011014,2]
[418959173,1774656646394,-1000.0,0.00011014,2]
[418959174,1774656646404,-715.0,0.00011014,2]
[418959175,1774656646414,-4434.3793055,0.00011088,2]
[418959176,1774656646424,-1500.0,0.00011148,2]
[418959177,1774656646436,-1619.61027975,0.00011148,2]
[418959178,1774656646447,-990.22659855,0.00011148,2]
[418959179,1774656646581,-509.77340145,0.00011148,2]
[418959180,1774656646591,-1500.0,0.00011148,2]
[418959181,1774656646600,-500.0,0.0001122,2]
[418959182,1774656646609,-1000.0,0.00011355,2]
[418959183,1774656646619,-1000.0,0.00011355,2]
[418959184,1774656646628,-1000.0,0.00011768,2]
[418959185,1774656646637,-1500.0,0.00011903,2]
[418959186,1774656646646,-342.02464982,0.00011903,2]
[418959187,1774656646656,-1000.0,0.00012115,2]
[418959188,1774656646665,-506.04382174,0.00012115,2]
[418959189,1774656646676,-493.95617826,0.00012115,2]
[418959191,1774656646685,-1000.0,0.00012115,2]
[418959192,1774656646694,-21980.32415378,0.00012264,2]
[418959193,1774656646706,-10808.59813182,0.00012264,2]
[418959194,1774656646715,-1500.0,0.00012316,2]
[418959195,1774656646724,-1159.316472,0.00012482,2]
[418959196,1774656646734,-500.0,0.0001283,2]
[418959197,1774656646743,-500.0,0.0001283,2]
[418959198,1774656646753,-500.0,0.0001283,2]
[418959199,1774656646762,-1000.0,0.00013378,2]
[418959200,1774656646773,-1000.0,0.00013378,2]
[418959201,1774656646782,-679.05738914,0.00013378,2]
[418959202,1774656646792,-500.0,0.00013506,2]
[418959203,1774656646812,-500.0,0.00013523,2]
[418959204,1774656646823,-500.0,0.00013633,2]
[418959205,1774656646833,-32788.9222856,0.00013686,2]
[418959206,1774656646843,-500.0,0.00013698,2]
[418959207,1774656646853,-500.0,0.00013698,2]
[418959208,1774656646863,-500.0,0.00013698,2]
[418959209,1774656646873,-500.0,0.00013698,2]
[418959210,1774656646892,-500.0,0.00013698,2]
[418959211,1774656646906,-500.0,0.00013698,2]
[418959212,1774656646921,-500.0,0.00013698,2]
[418959213,1774656646935,-500.0,0.00013698,2]
[418959214,1774656646949,-500.0,0.00013698,2]
[418959215,1774656646960,-500.0,0.00013698,2]
[418959216,1774656646971,-1000.0,0.00013699,2]
[418959217,1774656646982,-1000.0,0.00013699,2]
[418959218,1774656646994,-500.0,0.00013984,2]
[418959219,1774656647007,-500.0,0.00013986,2]
[418959220,1774656647018,-500.0,0.00013997,2]
[418959221,1774656647029,-500.0,0.00014005,2]
[418959222,1774656647043,-500.0,0.00014005,2]
[418959223,1774656647055,-500.0,0.00014005,2]
[418959224,1774656647067,-264.3758589,0.00014054,2]
[418959225,1774656647078,-1159.316472,0.00014121,2]
[418959226,1774656647090,-1000.0,0.00014181,2]
[418959227,1774656647103,-499.90001,0.00014271,2]
[418959228,1774656647116,-1000.0,0.00014553,2]
[418959229,1774656647128,-1000.0,0.00014553,2]
[418959230,1774656647139,-1000.0,0.00014553,2]
[418959231,1774656647149,-614.77165158,0.00014729,2]
[418959232,1774656647160,-892.56097247,0.00015,2]
[418959291,1774657832143,-3180.59923227,4.568e-05,2]
[418959292,1774657832173,-565.876,4.568e-05,2]
[418959293,1774657832186,-1253.52476773,4.568e-05,2]
[418959294,1774657832197,-5000.0,4.614e-05,2]
[418959295,1774657832206,-5000.0,4.661e-05,2]
[418959296,1774657832216,-300.0,4.707e-05,2]
[418959297,1774657832226,-600.0,5.587e-05,2]
[418959298,1774657832235,-720.0,6.146e-05,2]
[418959299,1774657832244,-864.0,6.76e-05,2]
[418959300,1774657832253,-1000.0,7.436e-05,2]
[418959301,1774657832263,-499.9610385,7.835e-05,2]
[418959302,1774657832272,-1000.0,8.18e-05,2]
[418959303,1774657832281,-244.0,8.18e-05,2]
[418959304,1774657832290,-1000.0,8.998e-05,2]
[418959305,1774657832300,-492.0,8.998e-05,2]
[418959306,1774657832311,-1000.0,9.898e-05,2]
[418959307,1774657832319,-791.0,9.898e-05,2]
[418959308,1774657832329,-1000.0,0.00010887,2]
[418959309,1774657832337,-1000.0,0.00010887,2]
[418959310,1774657832346,-500.0,0.00011974,2]
[418959311,1774657832355,-500.0,0.00011974,2]
[418959312,1774657832364,-500.0,0.00011974,2]
[418959313,1774657832373,-505.13942914,0.00011974,2]
[418959314,1774657832383,-500.0,0.00011974,2]
[418959315,1774657832392,-500.0,0.00011974,2]
[418959316,1774657832401,-500.0,0.00011974,2]
[418959317,1774657832412,-500.0,0.00011974,2]
[418959318,1774657832421,-500.0,0.00011974,2]
[418959319,1774657832430,-500.0,0.00011974,2]
[418959320,1774657832439,-500.0,0.00011974,2]
[418959321,1774657832448,-500.0,0.00011974,2]
[418959322,1774657832457,-500.0,0.00011974,2]
[418959323,1774657832467,-500.0,0.00011974,2]
[418959324,1774657832477,-500.0,0.00011974,2]
[418959325,1774657832485,-500.0,0.00011974,2]
[418959326,1774657832495,-490.90308525,0.00011974,2]
[418959327,1774657832505,-500.0,0.00011974,2]
[418959328,1774657832514,-1000.0,0.00011976,2]
[418959329,1774657832525,-1000.0,0.00011976,2]
[418959330,1774657832534,-579.0,0.00011976,2]
[418959331,1774657832544,-6124.71599745,0.0001308,2]
[418959366,1774657838409,-4216.73598783,0.00012949,2]
[418959368,1774657838419,-289.829118,0.0001308,2]
[418959370,1774657838428,-8197.2305714,0.0001308,2]
[418959372,1774657838437,-289.829118,0.0001308,2]
[418959374,1774657838447,-1000.0,0.00013174,2]
[418959376,1774657838457,-1000.0,0.00013174,2]
[418959378,1774657838466,-1000.0,0.00013174,2]
[418959380,1774657838475,-500.0,0.00013698,2]
[418959382,1774657838485,-500.0,0.00013698,2]
[418959384,1774657838495,-1000.0,0.00013699,2]
[418959387,1774657838504,-1000.0,0.00014491,2]
[418959389,1774657838513,-1000.0,0.00014491,2]
[418959390,1774657838522,-1000.0,0.00014491,2]
[418959392,1774657838531,-617.0,0.00014491,2]
[418959394,1774657838540,-500.0,0.00014814,2]
[418959397,1774657838549,-7419.57235841,0.00014814,2]
[418959471,1774657846763,-4323.11540219,0.00014666,2]
[418959501,1774659032627,-5000.0,0.00011181,2]
[418959502,1774659032637,-577.0,0.00011181,2]
[418959503,1774659032647,-1094.0,0.00011293,2]
[418959504,1774659032657,-5000.0,0.00011294,2]
[418959505,1774659032669,-300.0,0.00011752,2]
[418959506,1774659032679,-300.0,0.00011752,2]
[418959507,1774659032689,-300.0,0.00011752,2]
[418959508,1774659032699,-300.0,0.00011752,2]
[418959509,1774659032709,-222.73188356,0.00012614,2]
[418959510,1774659032718,-217.3718385,0.00012714,2]
[418959511,1774659032727,-3137.74990679,0.00012714,2]
[418959512,1774659032740,-1155.27993221,0.00012714,2]
[418959513,1774659032749,-217.3718385,0.00012714,2]
[418959514,1774659032758,-396.09622929,0.00012872,2]
[418959695,1774659043572,-5000.0,0.00012744,2]
[418959696,1774659043581,-3048.45415471,0.00012872,2]
[418959698,1774659043591,-26614.8208449,0.00012941,2]
[418959700,1774659043712,-500.0,0.00013413,2]
[418959702,1774659043722,-3444.550384,0.00013414,2]
[418959704,1774659043731,-500.0,0.00013697,2]
[418959705,1774659043741,-167.23771435,0.00013697,2]
[418959706,1774659043751,-582.61387033,0.00013697,2]
[418959707,1774659043761,-500.0,0.00013698,2]
[418959708,1774659043771,-500.0,0.00013698,2]
[418959710,1774659043782,-1000.0,0.00013699,2]
[418959711,1774659043792,-3444.550384,0.00013956,2]
[418959712,1774659043801,-500.0,0.00014497,2]
[418959713,1774659043811,-3444.550384,0.00014498,2]
[418959714,1774659043820,-217.3718385,0.00014666,2]
[418959715,1774659043830,-217.3718385,0.000147,2]
[418959716,1774659043839,-4293.029839,0.00014753,2]
[418959717,1774659043849,-196.10714887,0.00014903,2]
[418959718,1774659043858,-1000.0,0.00015,2]
[418959719,1774659043867,-1000.0,0.00015,2]
[418959720,1774659043876,-1000.0,0.00015,2]
[418959721,1774659043887,-1000.0,0.00015,2]
[418959722,1774659043896,-1000.0,0.00015,2]
[418959723,1774659043906,-1000.0,0.00015,2]
[418959724,1774659043915,-1000.0,0.00015,2]
[418959725,1774659043924,-1000.0,0.00015,2]
[418959726,1774659043934,-1000.0,0.00015,2]
[418959727,1774659043943,-1000.0,0.00015,2]
[418959728,1774659043953,-1000.0,0.00015,2]
[418959730,1774659043963,-1000.0,0.00015,2]
[418959731,1774659043972,-1000.0,0.00015,2]
[418959732,1774659043981,-1000.0,0.00015,2]
[418959733,1774659043991,-1000.0,0.00015,2]
[418959734,1774659044000,-1000.0,0.00015,2]
[418959735,1774659044010,-1000.0,0.00015,2]
[418959736,1774659044019,-408.72329188,0.00015,2]
[418959738,1774659044030,-1009.0,0.00015,2]
[418959739,1774659044039,-897.0,0.00015,2]
[418959740,1774659044048,-151.0,0.00015,2]
[418959741,1774659044058,-163.71046071,0.00015,2]
[418959742,1774659044067,-3444.550384,0.0001504,2]
[418959743,1774659044077,-26614.8208449,0.00015109,2]
[418959744,1774659044086,-286.0,0.00015299,2]
[418959745,1774659044096,-3444.550384,0.00015582,2]
[418959746,1774659044105,-500.0,0.00015817,2]
[418959747,1774659044114,-500.0,0.00015817,2]
[418959748,1774659044123,-328.62450729,0.00015817,2]
[418959749,1774659044132,-500.0,0.00015817,2]
[418959750,1774659044142,-162.65083734,0.00015818,2]
[418959751,1774659044151,-151.48948412,0.00015818,2]
[418959752,1774659044160,-151.0,0.00015818,2]
[418959753,1774659044169,-162.380719,0.00015818,2]
[418959754,1774659044178,-445.202766,0.00015818,2]
[418959755,1774659044189,-151.0,0.00015818,2]
[418959756,1774659044198,-166.50952861,0.00015818,2]
[418959757,1774659044207,-151.0,0.00015818,2]